[Event "44th Chess Olympiad Open 2022"]
[Site "Chennai"]
[Date "2022.08.02"]
[Round "5.29"]
[White "Supi, Luis Paulo"]
[Black "Giron, Jorge Ernesto"]
[Result "1/2-1/2"]
[WhiteElo "2603"]
[BlackElo "2288"]
[Annotator "TA"]
[PlyCount "126"]
[EventDate "2022.??.??"]
[TimeControl "60"]

{[%evp 9,126,23,46,33,28,29,44,31,30,0,0,0,0,0,0,0,0,4,16,-21,14,0,30,28,18,27,
16,23,29,18,24,22,0,0,0,0,0,0,0,0,0,0,0,-26,0,0,0,0,0,0,0,0,0,0,20,0,0,0,0,0,
22,58,116,0,0,0,43,0,0,0,0,0,0,0,0,0,0,0,0,0,0,0,0,0,0,0,0,0,0,0,12,12,14,0,0,
0,26,43,59,0,0,0,0,0,0,0,0,0,0,0,0,0,0,0,0,0,0,0,0]} 1. e4 {[%emt 0:00:06]} c5
{[%emt 0:00:13]} 2. Nf3 {[%emt 0:00:06]} d6 {[%emt 0:00:08]} 3. d4 {[%emt 0:00:
00]} cxd4 {[%emt 0:00:13]} 4. Nxd4 {[%emt 0:00:03]} Nf6 {[%emt 0:00:15]} 5. Nc3
{[%emt 0:00:03]} Bd7 {[%emt 0:00:10]} 6. f3 {[%emt 0:01:49] B56: Classical
Sicilian: Unusual Lines.} e5 {[%emt 0:00:23]} 7. Nb3 {[%emt 0:04:23]} Be7 {
[%emt 0:00:43]} 8. Be3 {[%emt 0:00:19] White is slightly better.} O-O {[%emt 0:
00:00]} 9. Be2 {[%emt 0:12:45] [#]} Be6 $146 {[%emt 0:02:43]} ({Predecessor:} 
9... a5 10. a4 Be6 11. Nd2 Qc8 12. O-O Na6 13. f4 exf4 14. Bxf4 Nb4 15. Kh1 Rd8
{0-1 (56) Mamedov,N (2463)-Izoria,Z (2565) Baku 2002}) 10. Nd5 {[%emt 0:02:00]}
Nxd5 {[%emt 0:00:21]} 11. exd5 {[%emt 0:00:17]} Bf5 {[%emt 0:01:15]} 12. Qd2 {
[%emt 0:00:36]} Nd7 {[%emt 0:07:22]} 13. O-O {[%emt 0:03:10]} Bg6 {[%emt 0:00:
00]} 14. Kh1 {[%emt 0:11:54]} a5 {[%emt 0:01:33]} 15. a4 {[%emt 0:00:38]} Nc5 {
[%emt 0:00:16]} 16. Nxc5 {[%emt 0:01:55]} dxc5 {[%emt 0:06:43]} 17. f4 {
[%emt 0:03:44]} exf4 {[%emt 0:00:38]} 18. Bxf4 {[%emt 0:00:31]} Bd6 $1 {
[%emt 0:01:56]} 19. c4 {[%emt 0:09:32]} Re8 {[%emt 0:01:48]} 20. Bf3 {[%emt 0:
00:00]} Qc7 {[%emt 0:04:59]} 21. Bxd6 {[%emt 0:00:07]} Qxd6 {[%emt 0:00:04]}
22. Rfe1 {[%emt 0:00:24]} b6 {[%emt 0:00:15]} 23. g3 {[%emt 0:07:22]} Kf8 {
[%emt 0:01:04]} 24. Kg2 {[%emt 0:02:11]} Rxe1 {[%emt 0:00:45]} 25. Rxe1 {
[%emt 0:00:04]} Re8 {[%emt 0:00:14] Against Qe2} 26. Re3 {[%emt 0:01:52]} f6 {
[%emt 0:05:18]} 27. Kf2 {[%emt 0:06:17]} Rxe3 {[%emt 0:09:36]} 28. Qxe3 $11 {
[%emt 0:00:04] Endgame KQB-KQB} Bc2 {[%emt 0:01:02]} 29. Be4 {[%emt 0:03:36]}
Bxa4 {[%emt 0:00:24]} 30. Bxh7 {[%emt 0:00:25]} Bd7 {[%emt 0:00:00]} 31. Bd3 {
[%emt 0:02:37]} Kf7 {[%emt 0:02:49]} 32. h4 {[%emt 0:15:26]} f5 {[%emt 0:08:47]
} 33. b3 {[%emt 0:08:48]} Qf6 {[%emt 0:07:07]} 34. Be2 {[%emt 0:04:16]} Qd6 {
[%emt 0:04:20]} 35. Bh5+ {[%emt 0:00:00]} g6 {[%emt 0:00:00]} (35... Kf8 $1 $14
) 36. Be2 {[%emt 0:00:00]} (36. Qh6 $16) 36... Qf6 {[%emt 0:00:19]} 37. Kf3 {
[%emt 0:00:00]} Qb2 {[%emt 0:05:40]} 38. h5 {[%emt 0:00:00]} (38. Kf4 $5 {
[%cal Re3e5]}) 38... gxh5 {[%emt 0:00:52]} 39. Qh6 {[%emt 0:00:00]} Qc3+ {
[%emt 0:03:53]} 40. Kg2 {[%emt 0:00:00] [#] Strongly threatening Qd6.} Qf6 {
[%emt 0:00:18] Prevents Qd6.} 41. Qxh5+ {[%emt 0:30:49]} Ke7 {[%emt 0:35:15]}
42. Qh4 {[%emt 0:00:00]} Kf7 {[%emt 0:00:00]} 43. Bh5+ {[%emt 0:00:00]} Kg7 {
[%emt 0:00:00]} 44. Qf4 {[%emt 0:00:00] [#] Hoping for Qc7.} Kf8 {[%emt 0:02:
44]} 45. Qh4 {[%emt 0:00:00]} Kg7 {[%emt 0:00:00]} 46. Qf4 {[%emt 0:00:00]} Kf8
{[%emt 0:00:00]} 47. Kf2 {[%emt 0:00:00]} Qb2+ {[%emt 0:00:00]} 48. Be2 {
[%emt 0:00:00]} Ke7 {[%emt 0:00:00] Against Qd6+} 49. Qh4+ {[%emt 0:02:11]} Kd6
{[%emt 0:00:00]} 50. Qd8 {[%emt 0:10:57]} Qd4+ $1 {[%emt 0:05:35]} 51. Kg2 {
[%emt 0:00:00]} Qe4+ {[%emt 0:00:00]} 52. Kf2 {[%emt 0:00:00]} Qd4+ {[%emt 0:
00:00]} 53. Kf1 {[%emt 0:00:00]} b5 {[%emt 0:00:00]} 54. cxb5 {[%emt 0:00:00]}
(54. Qxa5 $14 f4 55. Qd8) 54... Qxd5 {[%emt 0:00:00] The position is equal.}
55. Qb8+ {[%emt 0:00:00]} Ke7 {[%emt 0:00:00]} 56. Qf4 {[%emt 0:00:00]} Qxb3 {
[%emt 0:00:00]} 57. Qc7 {[%emt 0:00:00]} Qd5 {[%emt 0:00:00]} 58. b6 {[%emt 0:
00:00]} Qh1+ {[%emt 0:00:00]} 59. Kf2 {[%emt 0:00:00] aiming for Qe5+.} Qh2+ (
59... Qc6 $2 60. Qe5+ Kd8 61. Qh8+ Be8 62. Bh5 Qxb6 63. Qxe8+ Kc7 64. Qf7+ Kd6
65. Qf8+ Kc7 66. Qxf5 $18) 60. Kf1 {[%emt 0:00:00]} Qh1+ {[%emt 0:00:00]} 61.
Kf2 {[%emt 0:00:00] Chess con chili.} Qh2+ {[%emt 0:00:00]} (61... Qc6 $2 62.
Qe5+ Kd8 63. Qh8+ Be8 64. Bh5 Qxb6 65. Qxe8+ Kc7 66. Qf7+ Kd8 67. Qe8+ Kc7 68.
Qf7+ Kd6 69. Qg6+ Kc7 70. Qxf5 $18) 62. Kf1 {[%emt 0:00:00]} Qh1+ {[%emt 0:00:
09]} 63. Kf2 {[%emt 0:00:00] Black must now prevent Qe5+.} Qh2+ {[%emt 0:00:00]
Weighted Error Value: White=0.09 (flawless) /Black=0.05 (flawless)} (63... Qc6
$2 64. Qe5+ Kd8 65. Qh8+ Be8 66. Qh4+ Kc8 67. Qe7 Qxb6 68. Qxe8+ Kc7 69. Qf7+
Kc6 70. Qg6+ Kc7 71. Qh7+ Kc6 72. Qg6+ Kc7 73. Qg7+ Kd6 74. Qg6+ Kc7 $18)
1/2-1/2

[Event "44th Chess Olympiad Open 2022"]
[Site "Chennai"]
[Date "2022.08.02"]
[Round "5.29"]
[White "Mekhitarian, Krikor Sevag"]
[Black "Arias, Lemnys A."]
[Result "1-0"]
[WhiteElo "2542"]
[BlackElo "2258"]
[Annotator "RC"]
[PlyCount "111"]
[EventDate "2022.??.??"]
[TimeControl "60"]

1. d4 {[%emt 0:00:02]} d5 {[%emt 0:00:18]} 2. c4 {[%emt 0:00:02]} c6 {[%emt 0:
00:00]} 3. Nf3 {[%emt 0:00:06]} Nf6 {[%emt 0:00:05]} 4. Nc3 {[%emt 0:00:20]} a6
{[%emt 0:00:06]} 5. e3 {[%emt 0:00:13]} g6 {[%emt 0:01:04]} 6. Be2 {[%emt 0:00:
00]} Bg7 {[%emt 0:00:06]} 7. O-O {[%emt 0:00:05]} O-O {[%emt 0:00:04]} 8. a4 {
[%emt 0:00:12]} a5 {[%emt 0:02:56]} 9. cxd5 {[%emt 0:03:59]} Nxd5 {[%emt 0:00:
00]} 10. e4 {[%emt 0:00:58]} Nb4 {[%emt 0:00:08]} 11. h3 {[%emt 0:07:56]} b6 {
[%emt 0:02:59]} 12. Be3 {[%emt 0:01:18]} Bb7 {[%emt 0:00:46]} 13. Qb3 {[%emt 0:
00:00]} Nd7 {[%emt 0:04:41]} 14. Rfd1 {[%emt 0:00:49]} e6 {[%emt 0:01:48]} 15.
Rac1 {[%emt 0:00:46]} Qe7 {[%emt 0:01:02]} 16. Na2 {[%emt 0:18:16]} Rfc8 {
[%emt 0:18:20]} 17. Nxb4 {[%emt 0:10:24]} Qxb4 {[%emt 0:08:03]} 18. Qxb4 {
[%emt 0:05:10]} axb4 {[%emt 0:02:36]} 19. b3 {[%emt 0:00:01]} Bf8 {[%emt 0:00:
00]} 20. Nd2 {[%emt 0:15:26]} c5 {[%emt 0:10:31]} 21. Nc4 {[%emt 0:01:19]} Ba6
{[%emt 0:07:14]} 22. d5 {[%emt 0:11:25]} exd5 {[%emt 0:05:35]} 23. exd5 {
[%emt 0:04:25]} Bxc4 {[%emt 0:07:09]} 24. Bxc4 {[%emt 0:00:00]} Bd6 {[%emt 0:
00:00]} 25. Bb5 {[%emt 0:00:00]} Nf6 {[%emt 0:00:07]} 26. f3 {[%emt 0:02:59]}
Ra7 {[%emt 0:01:46]} 27. g4 {[%emt 0:00:34]} Re7 {[%emt 0:00:32]} 28. Bf2 {
[%emt 0:00:07]} Kg7 {[%emt 0:01:57]} 29. Re1 {[%emt 0:06:43]} Rd8 {[%emt 0:00:
00]} 30. Bc6 {[%emt 0:00:10]} g5 {[%emt 0:02:31]} 31. Rxe7 {[%emt 0:03:59]}
Bxe7 {[%emt 0:00:17]} 32. a5 {[%emt 0:00:40]} bxa5 {[%emt 0:09:23]} 33. Bxc5 {
[%emt 0:00:01]} Bd6 {[%emt 0:00:28]} 34. Bb6 {[%emt 0:03:14]} Rc8 {[%emt 0:00:
00]} 35. Ra1 {[%emt 0:00:18]} Bc7 {[%emt 0:01:23]} 36. Bxc7 {[%emt 0:00:50]}
Rxc7 {[%emt 0:00:02]} 37. Rxa5 {[%emt 0:00:05]} Nd7 {[%emt 0:00:15]} 38. Rb5 {
[%emt 0:01:57]} Kf6 {[%emt 0:02:59]} 39. Rxb4 {[%emt 0:00:43]} Ke5 {[%emt 0:00:
00]} 40. Re4+ {[%emt 0:02:03]} Kd6 {[%emt 0:00:09]} 41. b4 {[%emt 0:20:36]} Ra7
{[%emt 0:03:19]} 42. Bxd7 {[%emt 0:05:03]} Rxd7 {[%emt 0:04:50]} 43. Rd4 {
[%emt 0:02:04]} Ra7 {[%emt 0:00:12]} 44. Kf2 {[%emt 0:00:22]} Ra3 {[%emt 0:00:
00]} 45. Rc4 {[%emt 0:02:02]} Rb3 {[%emt 0:03:05]} 46. Rc6+ {[%emt 0:00:04]}
Ke5 {[%emt 0:00:11]} 47. d6 {[%emt 0:04:56]} Ke6 {[%emt 0:04:50]} 48. Rb6 {
[%emt 0:00:00]} h6 {[%emt 0:01:28]} 49. Rb7 {[%emt 0:00:00]} f6 {[%emt 0:00:25]
} 50. d7 {[%emt 0:00:00]} Ke7 {[%emt 0:02:10]} 51. b5 {[%emt 0:00:00]} Rd3 {
[%emt 0:00:59]} 52. Ke2 {[%emt 0:00:03]} Rb3 {[%emt 0:00:15]} 53. b6 {[%emt 0:
00:00]} Kd8 {[%emt 0:00:32]} 54. Kd2 {[%emt 0:00:29]} Rxf3 {[%emt 0:02:27]} 55.
Ra7 {[%emt 0:00:14]} Rb3 {[%emt 0:00:40]} 56. b7 {[%emt 0:00:34]} 1-0

[Event "44th Chess Olympiad Open 2022"]
[Site "Chennai"]
[Date "2022.08.02"]
[Round "5.29"]
[White "Burgos Figueroa, Carlos E."]
[Black "Fier, Alexandr"]
[Result "0-1"]
[WhiteElo "2164"]
[BlackElo "2567"]
[Annotator "RC"]
[PlyCount "70"]
[EventDate "2022.??.??"]
[TimeControl "60"]

1. e4 {[%emt 0:00:03]} c5 {[%emt 0:00:02]} 2. Nc3 {[%emt 0:00:05]} Nc6 {
[%emt 0:00:04]} 3. g3 {[%emt 0:00:08]} g6 {[%emt 0:00:04]} 4. Bg2 {[%emt 0:00:
00]} Bg7 {[%emt 0:00:03]} 5. Nge2 {[%emt 0:00:06]} d6 {[%emt 0:00:05]} 6. d3 {
[%emt 0:00:05]} e5 {[%emt 0:00:04]} 7. Be3 {[%emt 0:02:35]} Nge7 {[%emt 0:00:
00]} 8. Qd2 {[%emt 0:03:55]} Nd4 {[%emt 0:00:46]} 9. h3 {[%emt 0:00:05]} Be6 {
[%emt 0:01:06]} 10. f4 {[%emt 0:11:40]} Qd7 {[%emt 0:01:11]} 11. g4 {[%emt 0:
00:00]} Nxe2 {[%emt 0:07:17]} 12. Qxe2 {[%emt 0:06:08]} exf4 {[%emt 0:00:04]}
13. Bxf4 {[%emt 0:00:06]} h5 {[%emt 0:00:03]} 14. g5 {[%emt 0:00:53]} O-O {
[%emt 0:02:03]} 15. Nd1 {[%emt 0:14:05]} d5 {[%emt 0:00:50]} 16. c3 {[%emt 0:
00:00]} c4 {[%emt 0:05:06]} 17. d4 {[%emt 0:13:02]} dxe4 {[%emt 0:00:05]} 18.
Ne3 {[%emt 0:00:29]} Nd5 {[%emt 0:00:56]} 19. Nxd5 {[%emt 0:00:21]} Bxd5 {
[%emt 0:00:03]} 20. O-O {[%emt 0:01:33]} Rae8 {[%emt 0:04:10]} 21. Qe3 {
[%emt 0:04:12]} f5 {[%emt 0:00:24]} 22. gxf6 {[%emt 0:02:46]} Rxf6 {[%emt 0:00:
00]} 23. Bg5 {[%emt 0:01:02]} Rf3 {[%emt 0:00:15]} 24. Qe2 {[%emt 0:05:21]}
Ref8 {[%emt 0:02:43]} 25. Bxf3 {[%emt 0:08:50]} exf3 {[%emt 0:00:05]} 26. Qh2 {
[%emt 0:00:04]} Rf5 {[%emt 0:04:25]} 27. Qg3 {[%emt 0:07:52]} Bf8 {[%emt 0:00:
00]} 28. Rae1 {[%emt 0:05:23]} Bd6 {[%emt 0:00:19]} 29. Qh4 {[%emt 0:00:13]}
f2+ {[%emt 0:04:28]} 30. Rxf2 {[%emt 0:00:15]} Rxf2 {[%emt 0:00:04]} 31. Qxf2 {
[%emt 0:08:25]} Qxh3 {[%emt 0:00:05]} 32. Re8+ {[%emt 0:00:07]} Kh7 {[%emt 0:
00:00]} 33. Re4 {[%emt 0:00:04]} b5 {[%emt 0:01:47]} 34. Qe3 {[%emt 0:02:38]}
Qh2+ {[%emt 0:00:04]} 35. Kf1 {[%emt 0:01:18]} Qh1+ {[%emt 0:00:05]} 0-1

[Event "44th Chess Olympiad Open 2022"]
[Site "Chennai"]
[Date "2022.08.02"]
[Round "5.29"]
[White "Morales Carlos"]
[Black "Diamant, Andre"]
[Result "0-1"]
[WhiteElo "2036"]
[BlackElo "2538"]
[Annotator "RC"]
[PlyCount "44"]
[EventDate "2022.??.??"]
[TimeControl "60"]

1. Nf3 {[%emt 0:00:49]} c5 {[%emt 0:00:41]} 2. c4 {[%emt 0:00:20]} Nc6 {
[%emt 0:01:23]} 3. g3 {[%emt 0:00:22]} g6 {[%emt 0:01:30]} 4. Bg2 {[%emt 0:00:
00]} Bg7 {[%emt 0:00:04]} 5. O-O {[%emt 0:00:08]} e6 {[%emt 0:00:48]} 6. Nc3 {
[%emt 0:00:08]} Nge7 {[%emt 0:00:31]} 7. d4 {[%emt 0:00:05]} cxd4 {[%emt 0:00:
00]} 8. Nb5 {[%emt 0:00:04]} O-O {[%emt 0:03:42]} 9. Nbxd4 {[%emt 0:00:11]} d5
{[%emt 0:02:55]} 10. cxd5 {[%emt 0:02:00]} Nxd4 {[%emt 0:00:56]} 11. Nxd4 {
[%emt 0:01:36]} Nxd5 {[%emt 0:00:06]} 12. e4 {[%emt 0:02:06]} Nb6 {[%emt 0:00:
00]} 13. Nb5 {[%emt 0:01:15]} Bd7 {[%emt 0:02:03]} 14. Qb3 {[%emt 0:08:18]} a6
{[%emt 0:12:07]} 15. Nc3 {[%emt 0:01:05]} Bc6 {[%emt 0:02:37]} 16. Be3 {
[%emt 0:02:48]} Nd7 {[%emt 0:00:24]} 17. a4 {[%emt 0:00:17]} Ne5 {[%emt 0:00:
00]} 18. h3 {[%emt 0:23:11]} Qd3 {[%emt 0:05:02]} 19. Rfc1 {[%emt 0:21:42]}
Rfc8 {[%emt 0:02:52]} 20. Bf1 {[%emt 0:03:50]} Nf3+ {[%emt 0:04:18]} 21. Kg2 {
[%emt 0:01:18]} Nd2 {[%emt 0:01:39]} 22. Bxd2 {[%emt 0:01:04]} Bxe4+ {[%emt 0:
00:00]} 0-1

[Event "44th Chess Olympiad Open 2022"]
[Site "Chennai"]
[Date "2022.08.02"]
[Round "5.30"]
[White "Kadric, Denis"]
[Black "Rakotomaharo, Fy Antenaina"]
[Result "1/2-1/2"]
[WhiteElo "2554"]
[BlackElo "2490"]
[Annotator "TA"]
[PlyCount "71"]
[EventDate "2022.??.??"]
[TimeControl "60"]

{[%evp 14,71,25,23,13,10,36,32,39,25,39,31,18,23,48,53,104,30,27,36,46,33,22,
26,71,-21,0,0,33,20,35,37,32,39,41,37,29,32,39,27,35,34,33,25,32,0,0,0,15,15,
22,0,0,0,0,0,38,0,0,-22]} 1. e4 {[%emt 0:00:02]} e5 {[%emt 0:00:05]} 2. Nf3 {
[%emt 0:00:01]} Nc6 {[%emt 0:00:05]} 3. Bc4 {[%emt 0:00:02]} Bc5 {[%emt 0:00:
00]} 4. d3 {[%emt 0:00:03]} Nf6 {[%emt 0:00:38]} 5. O-O {[%emt 0:00:03]} d6 {
[%emt 0:00:43]} 6. c3 {[%emt 0:00:02]} a6 {[%emt 0:00:25]} 7. Bb3 {[%emt 0:00:
00]} Ba7 {[%emt 0:00:49]} 8. Re1 {[%emt 0:01:02]} h6 {[%emt 0:02:32] C54:
Giuoco Piano: 4 c3 Nf6, main lines with 5 d4 and 5 d3.} 9. Nbd2 {[%emt 0:00:21]
} g5 {[%emt 0:02:59]} 10. Nf1 {[%emt 0:00:04]} g4 {[%emt 0:00:04] White is
slightly better.} 11. N3d2 {[%emt 0:00:01]} h5 {[%emt 0:00:07]} 12. Nc4 $1 {
[%emt 0:00:01]} h4 {[%emt 0:02:52]} (12... d5 $2 13. exd5 Nxd5 14. Nxe5 $18)
13. Be3 {[%emt 0:00:06]} Nh5 {[%emt 0:10:43]} 14. Bxa7 {[%emt 0:03:18] [#]}
Nxa7 $146 {[%emt 0:04:49]} ({Better is} 14... Rxa7 $14 15. d4 Qg5) ({
Predecessor:} 14... Rxa7 15. Nce3 Qg5 16. Nd5 g3 17. fxg3 hxg3 18. hxg3 f5 19.
Nxc7+ Kd8 20. Ne6+ Bxe6 21. Bxe6 f4 22. Qg4 Qf6 23. Qf5 Qh6 24. Qh3 Qf8 25.
Qh4+ Nf6 {0-1 (25) Kadric,D (2573)-Ahmadzada,A (2480) Terme Catez 2022}) 15.
Nce3 {[%emt 0:02:53]} (15. d4 $16) 15... Qg5 $11 {[%emt 0:06:18]} 16. Nd5 {
[%emt 0:07:29]} Kd8 {[%emt 0:00:50]} 17. g3 {[%emt 0:00:59]} Nc6 {[%emt 0:00:
00]} 18. Qd2 {[%emt 0:04:38]} Qg6 {[%emt 0:01:05]} 19. d4 {[%emt 0:07:18]} ({
But not} 19. gxh4 $6 Ng7 $11) ({White should play} 19. Nfe3 $16) 19... Ng7 {
[%emt 0:00:00]} 20. Nb4 {[%emt 0:02:00] [#] And now Nxc6+ would win.} Nxb4 {
[%emt 0:03:35]} 21. cxb4 {[%emt 0:00:03] Strongly threatening dxe5.} f6 {
[%emt 0:02:24]} 22. Rac1 {[%emt 0:06:31]} Be6 {[%emt 0:02:45]} 23. Ba4 {
[%emt 0:05:36]} Rc8 {[%emt 0:08:52]} 24. d5 {[%emt 0:07:00]} Bd7 {[%emt 0:00:
00]} 25. Bxd7 {[%emt 0:00:05]} Kxd7 {[%emt 0:00:03]} 26. Rc4 {[%emt 0:00:28]}
f5 {[%emt 0:01:29]} 27. Rec1 {[%emt 0:08:33]} fxe4 {[%emt 0:06:50]} 28. Qc2 {
[%emt 0:00:02][%csl Yc7,Ye4][%cal Rc4c7]} Ne8 {[%emt 0:00:07]} 29. Ne3 {
[%emt 0:00:37]} Rh7 {[%emt 0:14:31][%cal Yh8h7,Yh7f7,Yf7f3]} 30. a4 {[%emt 0:
11:04]} hxg3 {[%emt 0:01:20]} 31. fxg3 {[%emt 0:00:02]} Rf7 {[%emt 0:00:00]}
32. b5 {[%emt 0:03:14]} Rf3 {[%emt 0:04:15]} 33. bxa6 {[%emt 0:06:28]} bxa6 {
[%emt 0:00:12]} (33... Rxe3 $2 34. axb7 Re1+ 35. Rxe1 $18) 34. Rc3 {[%emt 0:04:
22]} ({Not} 34. Qxe4 $2 Qxe4 35. Rxe4 Nf6 36. Rxg4 Nxg4 37. Nxg4 Rd3 $19) 34...
Ke7 {[%emt 0:02:45]} 35. Qe2 {[%emt 0:02:35] White has compensation.} Rb8 {
[%emt 0:02:36]} 36. Ng2 {[%emt 0:09:32] Weighted Error Value: White=0.14 (very
precise) /Black=0.10 (very precise)} 1/2-1/2

[Event "44th Chess Olympiad Open 2022"]
[Site "Chennai"]
[Date "2022.08.02"]
[Round "5.30"]
[White "Blagojevic, Dragisa"]
[Black "Razanadrakotoarisoa, Toavina"]
[Result "1-0"]
[WhiteElo "2499"]
[BlackElo "2039"]
[Annotator "RC"]
[PlyCount "85"]
[EventDate "2022.??.??"]
[TimeControl "60"]

1. d4 {[%emt 0:00:03]} Nf6 {[%emt 0:00:11]} 2. c4 {[%emt 0:00:06]} e6 {[%emt 0:
00:00]} 3. g3 {[%emt 0:00:09]} c5 {[%emt 0:02:06]} 4. d5 {[%emt 0:00:14]} exd5
{[%emt 0:00:43]} 5. cxd5 {[%emt 0:00:06]} d6 {[%emt 0:00:06]} 6. Nc3 {[%emt 0:
00:00]} g6 {[%emt 0:00:29]} 7. Bg2 {[%emt 0:00:19]} Bg7 {[%emt 0:00:18]} 8. Nf3
{[%emt 0:00:07]} O-O {[%emt 0:00:13]} 9. O-O {[%emt 0:00:06]} Re8 {[%emt 0:00:
00]} 10. h3 {[%emt 0:02:14]} a6 {[%emt 0:00:57]} 11. a4 {[%emt 0:00:09]} Ne4 {
[%emt 0:04:49]} 12. Nxe4 {[%emt 0:01:08]} Rxe4 {[%emt 0:00:03]} 13. Nd2 {
[%emt 0:01:27]} Rb4 {[%emt 0:08:04]} 14. Qc2 {[%emt 0:02:28]} Nd7 {[%emt 0:00:
00]} 15. Ra2 {[%emt 0:05:21]} b5 {[%emt 0:05:38]} 16. axb5 {[%emt 0:04:14]}
Rxb5 {[%emt 0:00:11]} 17. Nc4 {[%emt 0:01:39]} Qe7 {[%emt 0:09:30]} 18. Na5 {
[%emt 0:15:11]} f5 {[%emt 0:10:44]} 19. Nc6 {[%emt 0:07:42]} Qf8 {[%emt 0:00:
00]} 20. Bf4 {[%emt 0:11:24]} Bb7 {[%emt 0:09:34]} 21. e4 {[%emt 0:05:34]} fxe4
{[%emt 0:02:40]} 22. Qxe4 {[%emt 0:00:40]} Re8 {[%emt 0:01:09]} 23. Bxd6 {
[%emt 0:03:15]} Rxe4 {[%emt 0:00:08]} 24. Bxf8 {[%emt 0:00:04]} Re2 {[%emt 0:
00:00]} 25. Bxg7 {[%emt 0:00:39]} Kxg7 {[%emt 0:00:01]} 26. Rb1 {[%emt 0:03:08]
} Rd2 {[%emt 0:00:59]} 27. Nd8 {[%emt 0:14:20]} Bc8 {[%emt 0:01:40]} 28. Nc6 {
[%emt 0:19:54]} Bb7 {[%emt 0:08:23]} 29. Nd8 {[%emt 0:00:00]} Bc8 {[%emt 0:00:
00]} 30. Ne6+ {[%emt 0:00:00]} Kg8 {[%emt 0:06:10]} 31. Nc7 {[%emt 0:00:00]}
Rb6 {[%emt 0:00:11]} 32. Bf1 {[%emt 0:00:00]} Ne5 {[%emt 0:02:23]} 33. Ra3 {
[%emt 0:04:06]} Rf6 {[%emt 0:02:08]} 34. f4 {[%emt 0:00:00]} Nf7 {[%emt 0:00:
00]} 35. b4 {[%emt 0:00:07]} Bf5 {[%emt 0:01:04]} 36. Rbb3 {[%emt 0:00:47]} Bc2
{[%emt 0:00:30]} 37. Rb2 {[%emt 0:00:25]} cxb4 {[%emt 0:00:29]} 38. Rxb4 {
[%emt 0:00:14]} Nd6 {[%emt 0:00:28]} 39. Ra2 {[%emt 0:00:37]} Nf5 {[%emt 0:00:
00]} 40. Ne6 {[%emt 0:00:56]} Nxg3 {[%emt 0:00:33]} 41. Rb8+ {[%emt 0:30:50]}
Kf7 {[%emt 0:04:25]} 42. Rb7+ {[%emt 0:00:00]} Kg8 {[%emt 0:00:25]} 43. Rxa6 {
[%emt 0:00:00]} 1-0

[Event "44th Chess Olympiad Open 2022"]
[Site "Chennai"]
[Date "2022.08.02"]
[Round "5.30"]
[White "Andrianiaina, Heritiana"]
[Black "Djukic, Nikola"]
[Result "0-1"]
[WhiteElo "2095"]
[BlackElo "2526"]
[Annotator "RC"]
[PlyCount "132"]
[EventDate "2022.??.??"]
[TimeControl "60"]

1. d4 {[%emt 0:00:41]} g6 {[%emt 0:00:08]} 2. c4 {[%emt 0:03:07]} Bg7 {[%emt 0:
00:00]} 3. Nf3 {[%emt 0:00:23]} d6 {[%emt 0:00:39]} 4. Nc3 {[%emt 0:00:18]} Nd7
{[%emt 0:01:27]} 5. e3 {[%emt 0:02:06]} e5 {[%emt 0:02:05]} 6. Be2 {[%emt 0:00:
00]} Ngf6 {[%emt 0:03:28]} 7. O-O {[%emt 0:00:12]} O-O {[%emt 0:00:07]} 8. b3 {
[%emt 0:00:57]} Re8 {[%emt 0:02:30]} 9. dxe5 {[%emt 0:04:50]} dxe5 {[%emt 0:00:
00]} 10. Bb2 {[%emt 0:00:20]} e4 {[%emt 0:09:13]} 11. Nd4 {[%emt 0:01:23]} c6 {
[%emt 0:05:34]} 12. Qc2 {[%emt 0:02:12]} Qa5 {[%emt 0:04:58]} 13. Rfd1 {
[%emt 0:04:25]} Qg5 {[%emt 0:00:57]} 14. Bf1 {[%emt 0:04:53]} h5 {[%emt 0:00:
00]} 15. b4 {[%emt 0:05:07]} h4 {[%emt 0:09:14]} 16. h3 {[%emt 0:12:54]} Nf8 {
[%emt 0:09:28]} 17. Kh1 {[%emt 0:02:02]} Bd7 {[%emt 0:07:18]} 18. a3 {[%emt 0:
00:00]} Rad8 {[%emt 0:01:23]} 19. Rac1 {[%emt 0:00:32]} Qe5 {[%emt 0:24:11]}
20. b5 {[%emt 0:15:10]} Qc7 {[%emt 0:08:47]} 21. a4 {[%emt 0:12:48]} g5 {
[%emt 0:03:34]} 22. bxc6 {[%emt 0:05:19]} bxc6 {[%emt 0:00:00]} 23. Nde2 {
[%emt 0:00:47]} Ng6 {[%emt 0:00:00]} 24. Ba3 {[%emt 0:01:02]} Bf8 {[%emt 0:00:
00]} 25. Bxf8 {[%emt 0:01:14]} Kxf8 {[%emt 0:00:00]} 26. Qb2 {[%emt 0:07:10]}
Ne5 {[%emt 0:00:00]} 27. Qa3+ {[%emt 0:00:32]} Kg7 {[%emt 0:00:00]} 28. Ng1 {
[%emt 0:02:20]} Qa5 {[%emt 0:00:00]} 29. Rd4 {[%emt 0:03:57]} c5 {[%emt 0:00:
00]} 30. Rd2 {[%emt 0:00:00]} Be6 {[%emt 0:00:00]} 31. Rxd8 {[%emt 0:00:13]}
Rxd8 {[%emt 0:00:00]} 32. Qa1 {[%emt 0:01:11]} Qc7 {[%emt 0:00:00]} 33. Nb5 {
[%emt 0:00:48]} Qb8 {[%emt 0:00:00]} 34. Rb1 {[%emt 0:02:48]} a6 {[%emt 0:00:
00]} 35. Nd4 {[%emt 0:00:36]} Qd6 {[%emt 0:00:00]} 36. Nxe6+ {[%emt 0:00:12]}
Qxe6 {[%emt 0:00:00]} 37. Rd1 {[%emt 0:00:44]} Rxd1 38. Qxd1 {[%emt 0:00:01]}
g4 {[%emt 0:00:00]} 39. Qc2 {[%emt 0:00:35]} Qf5 {[%emt 0:00:00]} 40. hxg4 {
[%emt 0:00:55]} Nfxg4 {[%emt 0:00:46]} 41. Nh3 {[%emt 0:30:30]} Nxe3 {[%emt 0:
00:00]} 42. Qc1 {[%emt 0:00:00]} N3g4 {[%emt 0:00:00]} 43. Kg1 {[%emt 0:05:46]}
Nd7 {[%emt 0:00:00]} 44. Be2 {[%emt 0:00:00]} Nge5 {[%emt 0:01:07]} 45. Qe3 {
[%emt 0:04:44]} Nf6 {[%emt 0:00:00]} 46. Kf1 {[%emt 0:00:00]} Nc6 {[%emt 0:00:
00]} 47. Qf4 {[%emt 0:00:00]} Qxf4 48. Nxf4 {[%emt 0:00:00]} Nd4 {[%emt 0:00:
00]} 49. Ke1 {[%emt 0:02:59]} Nd7 {[%emt 0:00:00]} 50. Nd5 {[%emt 0:00:00]} a5
{[%emt 0:03:23]} 51. Bf1 {[%emt 0:00:00]} f5 {[%emt 0:00:00]} 52. Kd2 {[%emt 0:
00:00]} Ne5 {[%emt 0:00:00]} 53. Nb6 {[%emt 0:00:00]} Kf7 {[%emt 0:00:00]} 54.
g3 {[%emt 0:02:20]} hxg3 {[%emt 0:00:00]} 55. fxg3 {[%emt 0:00:00]} Kf6 {
[%emt 0:00:52]} 56. Ke3 {[%emt 0:00:00]} Kg5 {[%emt 0:00:00]} 57. Bh3 {[%emt 0:
00:00]} Ndf3 {[%emt 0:00:00]} 58. g4 {[%emt 0:00:00]} Nxg4+ {[%emt 0:00:00]}
59. Bxg4 {[%emt 0:00:06]} Kxg4 {[%emt 0:00:00]} 60. Nd7 {[%emt 0:00:00]} Ng5 {
[%emt 0:01:34]} 61. Nxc5 {[%emt 0:00:00]} f4+ {[%emt 0:00:00]} 62. Kf2 {
[%emt 0:00:00]} e3+ {[%emt 0:00:00]} 63. Ke2 {[%emt 0:00:00]} Kg3 {[%emt 0:00:
00]} 64. Nb3 {[%emt 0:00:00]} Ne4 {[%emt 0:00:00]} 65. Nd4 {[%emt 0:00:00]}
Nc3+ {[%emt 0:00:00]} 66. Kd3 {[%emt 0:00:00]} Nxa4 {[%emt 0:00:00]} 0-1